bitfinex/quotes_ETHUSD_20250924
["timestamp","ask_amount","ask_price","bid_price","bid_amount"]
[1758712970199,0.22414675,4196.5,4196.4,5.62586121]
[1758712970695,0.22414675,4196.5,4196.4,20.12586121]
[1758712971898,0.22414675,4196.5,4196.4,20.36126121]
[1758712972202,0.22414675,4196.5,4196.4,20.69136121]
[1758712974004,0.22414675,4196.5,4196.4,20.36126121]
[1758712975726,0.22334675,4196.5,4196.4,20.36126121]
[1758712977772,0.22334675,4196.5,4196.4,20.47966121]
[1758712978071,0.22334675,4196.5,4196.4,20.24426121]
[1758712978827,0.22334675,4196.5,4196.4,20.47966121]
[1758712982532,0.22334675,4196.5,4196.4,14.8538]
[1758712982736,0.22334675,4196.5,4196.4,14.6184]
[1758712983147,0.90774675,4196.5,4196.4,14.5]
[1758712983560,1.60134675,4196.5,4196.4,14.5]
[1758712989484,1.60156463,4196.5,4196.4,14.5]
[1758712994726,1.82503777,4196.5,4196.4,14.5]
[1758712995308,1.60156463,4196.5,4196.4,14.5]
[1758713000018,0.91716463,4196.5,4196.4,14.5]
[1758713002903,0.91636463,4196.5,4196.4,14.5]
[1758713004315,1.61056463,4196.5,4196.4,14.5]
[1758713005112,2.12541369,4196.5,4196.4,14.5]
[1758713008016,0.1184,4196.4,4196.1,0.024]
[1758713008228,0.22336463,4196.3,4196.1,0.024]
[1758713008515,0.22336463,4196.2,4196.1,0.024]
[1758713008930,0.22336463,4196.2,4196.1,14.524]
[1758713013416,0.91756463,4196.2,4196.1,14.524]
[1758713014637,0.91764716,4196.2,4196.1,14.524]
[1758713016494,1.66356198,4196.2,4196.1,14.524]
[1758713016698,1.66356198,4196.2,4196.1,0.024]
[1758713016929,2.3071429,4196.2,4196.1,0.024]
[1758713018634,2.45558157,4196.2,4196.1,0.024]
[1758713018842,0.9104,4196.1,4195.7,0.004]
[1758713019037,1.38173399,4196.0,4195.7,0.004]
[1758713019241,0.73831581,4195.9,4195.7,0.004]
[1758713019437,0.22346675,4195.8,4195.7,0.004]
[1758713019846,0.91766675,4195.8,4195.7,0.004]
[1758713020638,1.63441587,4195.8,4195.7,0.004]
[1758713020802,1.99288418,4195.8,4195.7,0.004]
[1758713024616,2.78488418,4195.8,4195.7,0.004]
[1758713025016,3.94315142,4195.8,4195.7,0.004]
[1758713025320,3.42830236,4195.8,4195.7,0.004]
[1758713027558,6.29973324,4195.8,4195.7,0.004]
[1758713029034,0.9104,4195.7,4195.6,0.004]
[1758713029233,2.36972913,4195.7,4195.6,0.004]
[1758713029467,3.04602913,4195.7,4195.6,0.004]
[1758713029672,2.32501581,4195.7,4195.6,0.004]
[1758713029873,2.32421581,4195.7,4195.6,0.004]
[1758713031542,1.89441581,4195.7,4195.6,0.004]
[1758713033052,4.89441581,4195.7,4195.6,0.004]
[1758713033462,4.37956675,4195.7,4195.6,0.004]
[1758713033773,5.02632579,4195.7,4195.2,14.504]
[1758713033976,0.64199925,4195.5,4195.2,14.504]
[1758713034160,0.22346675,4195.4,4195.2,14.7538]
[1758713034479,0.22346675,4195.3,4195.2,14.504]
[1758713035158,0.22346675,4195.3,4195.2,14.7538]
[1758713036297,0.22346675,4195.6,4195.2,21.4206525]
[1758713036498,0.22346675,4196.0,4195.5,6.5484525]
[1758713036698,0.22346675,4195.9,4195.6,0.60373449]
[1758713036995,0.22346675,4195.8,4195.7,0.5799]
[1758713037199,0.22346675,4196.0,4195.8,0.1184]
[1758713037376,0.22287096,4196.0,4195.9,15.10373278]
[1758713037574,0.001,4196.1,4195.9,15.0799]
[1758713037778,0.001,4196.1,4196.0,0.5799]
[1758713038270,0.22387096,4196.1,4196.0,15.0799]
[1758713038468,0.001,4196.1,4196.0,15.0799]
[1758713041064,0.22387096,4196.1,4196.0,15.0799]
[1758713041263,0.001,4196.1,4196.0,15.0799]
[1758713043004,0.001,4196.1,4196.0,15.0799]
[1758713044831,0.001,4196.1,4196.0,20.70375365]
[1758713045486,0.001,4196.1,4196.0,15.0799]
[1758713045684,0.001,4196.1,4196.0,20.70375365]
[1758713047337,0.001,4196.1,4196.0,20.37365365]
[1758713049721,0.001,4196.1,4196.0,14.5]
[1758713049889,0.243,4196.1,4196.0,14.5]
[1758713050089,0.6878,4196.1,4196.0,14.5]
[1758713052290,0.9103549,4196.1,4196.0,14.5]
[1758713052704,0.6878,4196.1,4196.0,14.5]
[1758713053127,0.9103549,4196.1,4196.0,14.5]
[1758713053314,0.6878,4196.1,4196.0,14.5]
[1758713053517,0.6878,4196.1,4195.8,0.1184]
[1758713053839,0.688,4196.0,4195.8,0.1184]
[1758713054338,0.688,4195.9,4195.6,0.1224]
[1758713054639,0.688,4195.8,4195.6,0.1224]
[1758713055024,0.688,4195.8,4195.7,14.5]
[1758713055244,0.689,4196.1,4195.7,14.5]
[1758713055453,0.689,4196.1,4195.7,20.12385365]
[1758713055826,0.91157266,4196.1,4195.7,20.12385365]
[1758713056034,0.22257266,4196.0,4195.7,20.12385365]
[1758713056532,0.22257266,4196.0,4195.7,20.37285365]
[1758713056933,0.22177266,4196.0,4195.7,20.37285365]
[1758713058022,0.22177266,4196.0,4195.7,14.749]
[1758713058845,0.22177266,4196.0,4195.8,0.60293335]
[1758713059017,0.22177266,4196.0,4195.9,0.5791]
[1758713059222,0.22177266,4196.0,4195.9,15.0791]
[1758713060959,0.22177266,4196.0,4195.9,15.1975]
[1758713061142,0.001,4196.1,4195.9,15.0791]
[1758713061342,0.001,4196.1,4196.0,0.60293222]
[1758713061823,0.001,4196.1,4196.0,15.10293222]
[1758713062156,0.001,4196.1,4196.0,15.0791]
[1758713065433,0.001,4196.1,4196.0,14.749]
[1758713065956,0.001,4196.1,4196.0,15.0791]
[1758713068783,0.001,4196.1,4196.0,20.37285365]
[1758713068946,0.001,4196.1,4196.0,20.70295365]
[1758713070448,0.001,4196.1,4196.0,14.5]
[1758713071286,0.001,4196.1,4196.0,14.6184]
[1758713071488,0.689,4196.1,4196.0,14.6184]
[1758713072189,0.001,4196.1,4196.0,14.6184]
[1758713072574,0.001,4196.1,4196.0,14.8674]
[1758713072984,0.001,4196.1,4196.0,14.6184]
[1758713075289,0.689,4196.1,4196.0,14.6184]
[1758713075491,0.001,4196.1,4196.0,14.6184]
[1758713076988,0.689,4196.1,4196.0,14.6184]
[1758713077889,0.001,4196.1,4196.0,14.6184]
[1758713079098,0.001,4196.1,4196.0,14.8674]
[1758713079271,0.001,4196.1,4196.0,14.6184]
[1758713084258,0.0002,4196.1,4196.0,14.6184]
[1758713085571,0.0002,4196.1,4196.0,14.6224]
[1758713086307,0.22345527,4196.1,4196.0,14.6224]
[1758713091876,0.46985527,4196.1,4196.0,14.6224]
[1758713092202,0.91095527,4196.1,4196.0,14.6224]
[1758713096537,0.91095527,4196.1,4196.0,14.504]
[1758713097847,0.22345527,4196.1,4196.0,14.504]
[1758713098005,0.22345527,4196.1,4196.0,14.7399]
[1758713098202,0.22345527,4196.1,4196.0,15.07]
[1758713098809,0.22345527,4196.1,4196.0,15.1884]
[1758713101734,0.0002,4196.1,4196.0,15.1884]
[1758713103038,0.0002,4196.1,4196.0,18.1884]
[1758713103245,0.0002,4196.1,4196.0,18.9804]
[1758713106727,0.0002,4196.1,4196.0,25.52701836]
[1758713111347,0.0004,4196.5,4196.1,3.792]
[1758713111550,0.0004,4196.5,4196.4,6.54661836]
[1758713111754,0.0004,4196.5,4196.4,9.66501836]
[1758713111919,0.0004,4196.5,4196.4,24.72681836]
[1758713112117,0.001,4197.4,4196.5,3.792]
[1758713112350,0.001,4197.4,4196.9,6.66501836]
[1758713113060,0.001,4197.4,4196.9,21.39671836]
[1758713113450,0.2445,4197.4,4196.9,21.16501836]
[1758713113648,0.001,4197.4,4196.9,21.16501836]
[1758713113960,0.7152,4197.0,4196.9,21.16501836]
[1758713114268,0.7152,4197.0,4196.9,14.6184]
[1758713123159,0.001,4197.0,4196.9,14.6184]
[1758713123326,0.001,4197.0,4196.9,14.7317]
[1758713123530,0.001,4197.0,4196.9,14.5]
[1758713124033,0.001,4197.0,4196.9,14.7317]
[1758713126361,0.001,4197.0,4196.9,14.5]
[1758713126658,0.001,4197.0,4196.9,15.0618]
[1758713133282,0.001,4197.0,4196.9,15.1802]
[1758713133953,0.001,4197.0,4196.9,14.8501]
[1758713135981,0.001,4197.0,4196.9,14.6184]
[1758713136283,0.001,4197.0,4196.9,14.8501]
[1758713136778,0.001,4197.0,4196.9,14.6184]
[1758713138370,0.7144,4197.0,4196.9,14.6184]
[1758713138573,0.0002,4197.0,4196.9,14.6184]
[1758713138761,0.0002,4197.0,4196.9,18.1802]
[1758713142370,0.0002,4197.0,4196.9,18.8538]
[1758713142784,0.0002,4197.0,4196.9,18.94927235]
[1758713147310,0.0002,4197.0,4196.9,18.94927235]
[1758713148121,0.0002,4197.0,4196.9,18.61917235]
[1758713149637,0.0002,4197.0,4196.9,18.38747235]
[1758713150090,0.0002,4197.0,4196.9,18.61737235]
[1758713150417,0.0002,4197.0,4196.9,18.38747235]
[1758713151019,0.0002,4197.0,4196.9,18.61737235]
[1758713152122,0.0002,4197.0,4196.9,18.38747235]
[1758713152425,0.0002,4197.0,4196.9,17.71387235]
[1758713152426,0.7171,4197.0,4196.9,17.71387235]
[1758713152635,0.7171,4197.0,4196.9,17.6184]
[1758713153014,0.0002,4197.0,4196.9,17.6184]
[1758713153842,0.0002,4197.0,4196.9,17.8483]
[1758713155228,0.0002,4197.0,4196.9,17.6184]
[1758713156855,0.7171,4197.0,4196.9,17.6184]
[1758713160639,0.7171,4197.0,4196.9,14.6184]
[1758713165412,0.7163,4197.0,4196.9,14.6184]
[1758713172442,0.001,4197.4,4196.9,14.6184]
[1758713172654,0.001,4197.4,4197.3,8.74005512]
[1758713173139,0.001,4197.4,4197.3,23.81365512]
[1758713173308,0.001,4197.4,4197.3,23.48355512]
[1758713178356,0.001,4197.4,4197.3,23.24005512]
[1758713181860,0.001,4197.4,4197.3,23.48355512]
[1758713182065,0.001,4197.4,4197.3,17.8619]
[1758713182263,0.001,4197.4,4197.3,23.48355512]
[1758713182857,0.001,4197.4,4197.3,23.24005512]
[1758713187232,0.001,4197.4,4197.3,23.48355512]
[1758713187656,0.001,4197.4,4197.3,23.24005512]
[1758713188335,0.6763,4197.4,4197.3,23.24005512]
[1758713189057,0.2451,4197.4,4197.3,23.24005512]
[1758713189226,0.001,4197.4,4197.3,23.24005512]
[1758713189430,0.001,4197.4,4197.3,17.6184]
[1758713189630,0.6763,4197.4,4197.3,17.6184]
[1758713192359,0.6763,4197.4,4197.3,14.6184]
[1758713192559,0.6755,4197.4,4197.3,14.6184]
[1758713194292,0.89846696,4197.4,4197.3,14.6184]
[1758713197494,0.22316696,4197.4,4197.3,14.6184]
[1758713197664,0.46726696,4197.4,4197.3,14.6184]
[1758713197999,0.89846696,4197.4,4197.3,14.6184]
[1758713200706,0.22316696,4197.4,4197.3,14.6184]
[1758713200908,0.0002,4197.4,4197.3,14.5]
[1758713201071,0.6755,4197.4,4197.3,14.5]
[1758713210391,0.89852946,4197.4,4197.3,14.5]
[1758713210822,0.89852946,4197.4,4197.3,14.6184]
[1758713213721,0.22322946,4197.4,4197.3,14.6184]
[1758713214735,0.44952946,4197.4,4197.3,14.6184]
[1758713215557,0.90942946,4197.4,4197.3,14.6184]
[1758713217847,0.90961178,4197.4,4197.3,14.6184]
[1758713219623,0.90881178,4197.4,4197.3,14.6184]
[1758713221855,0.90881178,4197.4,4197.3,14.5]
[1758713222058,2.07560775,4197.4,4197.3,14.5]
[1758713222257,0.90881178,4197.4,4197.3,14.5]
[1758713223162,2.27869066,4197.4,4197.0,0.004]
[1758713223473,5.62165512,4197.2,4197.0,0.004]
[1758713223627,0.73676106,4197.1,4197.0,0.004]
[1758713224046,1.45106106,4197.1,4197.0,0.004]
[1758713224283,1.99942158,4197.1,4197.0,0.004]
[1758713226977,0.7143,4197.1,4197.0,0.004]
[1758713227153,1.3573068,4197.1,4197.0,0.004]
[1758713227672,0.8098387,4197.1,4197.0,0.004]
[1758713228995,8.15307965,4197.1,4197.0,0.004]
[1758713229320,11.66662893,4197.1,4197.0,0.004]
[1758713229593,12.91892478,4197.1,4197.0,0.004]
[1758713230396,6.36768383,4197.1,4197.0,0.004]
[1758713230608,4.96460442,4197.1,4197.0,0.004]
[1758713230900,4.45105514,4197.1,4197.0,0.004]
[1758713231401,3.8098387,4197.1,4197.0,0.004]
[1758713233009,0.0955387,4197.1,4197.0,0.004]
[1758713233318,0.242,4197.4,4197.0,0.004]
[1758713233480,0.6802,4197.1,4197.0,0.004]
[1758713234142,0.6802,4197.1,4197.0,14.504]
[1758713234422,0.6802,4197.3,4197.0,14.504]
[1758713234718,0.6802,4197.2,4197.0,14.504]
[1758713235517,0.53473048,4197.5,4197.0,14.504]
[1758713235722,0.87709469,4197.4,4197.0,14.504]
[1758713235910,0.19689469,4197.4,4197.0,14.504]
[1758713236111,0.6802,4197.3,4197.0,14.504]
[1758713238220,0.242,4197.2,4197.0,14.504]
[1758713238423,0.19689469,4197.4,4197.0,14.504]
[1758713238728,0.85083733,4197.3,4197.0,14.504]
[1758713241003,0.6802,4197.1,4197.0,14.504]
[1758713241490,0.17063733,4197.3,4197.0,14.504]
[1758713241692,0.17063733,4197.3,4197.1,0.2342]
[1758713242014,0.17063733,4197.3,4197.0,14.504]
[1758713242223,0.1184,4197.3,4197.0,14.504]
[1758713242430,0.001,4197.5,4197.1,0.3307]
[1758713242644,0.001,4197.5,4197.1,0.5649]
[1758713242796,0.001,4197.5,4197.2,0.5649]
[1758713243162,0.001,4197.5,4197.3,0.5649]
[1758713243528,0.001,4197.5,4197.4,0.2342]
[1758713243848,0.001,4197.5,4197.4,14.7342]
[1758713244838,0.001,4197.5,4197.4,14.5]
[1758713245136,0.6812,4197.5,4197.4,14.5]
[1758713245317,1.4045441,4197.5,4197.4,14.5]
[1758713246728,0.6812,4197.5,4197.4,14.5]
[1758713246965,0.6804,4197.5,4197.4,14.5]
[1758713247609,0.0002,4197.5,4197.4,14.5]
[1758713248214,0.6804,4197.5,4197.4,14.5]
[1758713249914,1.83516572,4197.5,4197.0,0.004]
[1758713250101,0.64121644,4197.1,4197.0,0.004]
[1758713250855,1.83496572,4197.1,4197.0,0.004]
[1758713252755,2.62696572,4197.1,4197.0,0.004]
[1758713253062,1.98574928,4197.1,4197.0,0.004]
[1758713253360,2.59787249,4197.1,4197.0,0.004]
[1758713254944,12.14911344,4197.1,4197.0,0.004]
[1758713255145,12.14911344,4197.1,4196.8,0.004]
[1758713255146,0.1184,4197.0,4196.8,0.004]
[1758713255347,0.51354928,4196.9,4196.8,0.004]
[1758713255627,1.19374928,4196.9,4196.8,0.004]
[1758713255851,2.50613358,4196.9,4196.8,0.004]
[1758713256066,6.29813358,4196.9,4196.8,0.004]
[1758713257329,3.792,4196.8,4196.6,0.004]
[1758713257557,1.37045405,4196.7,4196.6,0.004]
[1758713257757,5.05065405,4196.7,4196.6,0.004]
[1758713258031,3.2038802,4196.7,4196.6,0.004]
[1758713258876,1.66677543,4196.7,4196.6,0.004]
[1758713259891,2.34697543,4196.7,4196.6,0.004]
[1758713260744,1.66677543,4196.7,4196.6,0.004]
[1758713262005,2.35547543,4196.7,4196.6,0.004]
[1758713262574,3.14747543,4196.7,4196.6,0.004]
[1758713262876,13.55562115,4196.7,4196.6,0.004]
[1758713263389,12.69871638,4196.7,4196.6,0.004]
[1758713271694,12.01001638,4196.7,4196.6,0.004]
[1758713272504,12.25381638,4196.7,4196.6,0.004]
[1758713272983,12.69871638,4196.7,4196.6,0.004]
[1758713273905,12.69791638,4196.7,4196.6,0.004]
[1758713274416,12.00921638,4196.7,4196.6,0.004]
[1758713274604,12.69791638,4196.7,4196.6,0.004]
[1758713275214,13.55482115,4196.7,4196.6,0.004]
[1758713276384,3.9104,4196.6,4196.5,0.004]
[1758713276585,5.97597706,4196.6,4196.5,0.004]
[1758713277395,6.69264912,4196.6,4196.5,0.004]
[1758713277911,7.54955389,4196.6,4196.5,0.004]
[1758713278319,6.69264912,4196.6,4196.5,0.004]
[1758713281132,6.57424912,4196.6,4196.1,0.004]
[1758713281305,1.28708342,4196.3,4196.1,0.004]
[1758713281831,0.6764,4196.2,4196.1,0.004]
[1758713282426,0.7937714,4196.2,4196.1,0.004]
[1758713283016,4.5857714,4196.2,4196.1,0.004]
[1758713283333,5.87285482,4196.2,4196.1,0.004]
[1758713283537,6.60095113,4196.2,4196.1,0.004]
[1758713284037,5.92455113,4196.2,4196.1,0.004]
[1758713284240,4.52009631,4196.2,4196.1,0.004]
[1758713284747,3.72809631,4196.2,4196.1,0.2502]
[1758713286030,4.24304302,4196.2,4196.1,0.2502]
[1758713286334,4.24304302,4196.2,4196.1,0.01746022]
[1758713286543,4.24304302,4196.2,4196.0,0.004]
[1758713286747,0.51494671,4196.1,4196.0,0.004]
[1758713287233,1.07751528,4196.1,4196.0,0.004]
[1758713288357,1.93557979,4196.1,4196.0,0.004]
[1758713288859,1.93557979,4196.1,4196.0,0.1402]
[1758713289030,1.93557979,4196.1,4196.0,0.004]
[1758713294942,1.07751528,4196.1,4196.0,0.004]
[1758713295229,9.70439362,4196.1,4196.0,0.004]
[1758713295434,10.13349362,4196.1,4196.0,0.004]
[1758713296184,12.21257704,4196.1,4196.0,0.004]
[1758713296478,3.9104,4196.0,4195.7,14.504]
[1758713296777,6.48487228,4195.8,4195.7,14.504]
[1758713296988,7.79166864,4195.8,4195.7,14.504]
[1758713297149,8.22076864,4195.8,4195.7,14.504]
[1758713298274,8.22076864,4195.8,4195.7,0.004]
[1758713299046,10.3627747,4195.8,4195.7,0.004]
[1758713299284,3.9104,4195.7,4195.6,0.004]
[1758713299491,5.71182208,4195.7,4195.6,0.004]
[1758713299699,6.14092208,4195.7,4195.6,0.004]
[1758713300275,4.85429636,4195.7,4195.6,0.004]
[1758713300983,4.85349636,4195.7,4195.6,0.004]
[1758713301189,6.33183995,4195.7,4195.6,0.004]
[1758713303349,4.99233995,4195.7,4195.6,0.004]
[1758713304264,5.42143995,4195.7,4195.6,0.004]
[1758713305553,11.41121829,4195.7,4195.6,0.004]
[1758713305756,11.84031829,4195.7,4195.6,0.004]
[1758713306592,0.792,4195.4,4195.2,0.004]
[1758713306780,9.1416747,4195.3,4195.2,0.004]
[1758713306951,10.70459854,4195.3,4195.2,0.004]
[1758713307564,11.49659854,4195.3,4195.2,0.004]
[1758713307768,10.59218153,4195.3,4195.2,0.004]
[1758713308588,10.16308153,4195.3,4195.2,0.004]
[1758713309106,10.59218153,4195.3,4195.2,0.004]
[1758713310389,11.44942849,4195.3,4195.2,0.004]
[1758713313186,10.59218153,4195.3,4195.2,0.004]
[1758713316488,3.9104,4195.2,4194.8,0.004]
[1758713316688,2.57142621,4195.1,4194.8,0.004]
[1758713316885,0.51479636,4195.0,4194.8,0.004]
[1758713317090,0.51479636,4194.9,4194.8,0.004]
[1758713318231,1.30679636,4194.9,4194.8,0.004]
[1758713318450,1.73589636,4194.9,4194.8,0.004]
[1758713318625,2.97783681,4194.9,4194.8,0.004]
[1758713319332,4.59983198,4194.9,4194.8,0.004]
[1758713319535,3.0,4194.8,4194.7,0.004]
[1758713319684,3.51479636,4194.8,4194.7,0.004]
[1758713319879,3.94328505,4194.8,4194.7,0.004]
[1758713320084,5.26589495,4194.8,4194.7,0.004]
[1758713320284,5.98292501,4194.8,4194.7,0.004]
[1758713322422,6.3567803,4194.8,4194.7,0.004]
[1758713322808,5.9276803,4194.8,4194.7,0.004]
[1758713323010,2.46176522,4194.8,4194.7,0.004]
[1758713323225,1.6050704,4194.8,4194.7,0.004]
[1758713323604,1.6050704,4194.8,4194.7,0.3347]
[1758713323802,1.6050704,4194.8,4194.7,14.8347]
[1758713324320,1.6050704,4194.8,4194.7,14.504]
[1758713325318,2.46176522,4194.8,4194.7,14.504]
[1758713325823,1.6050704,4194.8,4194.7,14.504]
[1758713326489,1.6050704,4194.8,4194.3,0.004]
[1758713326838,0.64289881,4194.4,4194.3,0.004]
[1758713327485,1.15708386,4194.4,4194.3,0.004]
[1758713328196,1.15628386,4194.4,4194.3,0.004]
[1758713330349,1.15628386,4194.4,4194.3,0.3347]
[1758713330662,0.3507,4194.5,4194.3,0.3347]
[1758713331166,0.3507,4194.5,4194.4,14.5]
[1758713331518,0.3507,4194.5,4194.4,14.8307]
[1758713336127,0.3507,4194.5,4194.4,14.5]
[1758713337969,0.3507,4194.5,4194.4,14.8307]
[1758713338491,0.3507,4194.5,4194.4,14.5]
[1758713339555,0.3507,4194.5,4194.4,14.8307]
[1758713340639,0.63258505,4195.2,4194.4,14.9499]
[1758713340869,0.63258505,4195.2,4194.5,0.35454074]
[1758713341064,0.51418505,4194.7,4194.5,0.35454074]
[1758713341268,0.51418505,4194.7,4194.6,14.5]
[1758713341464,0.51418505,4194.7,4194.6,14.8307]
[1758713342183,0.51418505,4194.7,4194.6,14.9491]
[1758713342388,0.001,4195.3,4194.6,14.9491]
[1758713342592,0.51418505,4195.1,4194.8,5.62687834]
[1758713342793,0.51418505,4195.1,4194.9,0.35453847]
[1758713342952,0.51418505,4195.1,4195.0,14.5]
[1758713343151,0.51418505,4195.1,4195.0,14.8307]
[1758713343455,0.001,4195.3,4195.0,14.9491]
[1758713343676,0.001,4195.3,4195.1,0.35453733]
[1758713343883,0.001,4195.3,4195.1,5.98141567]
[1758713344082,0.001,4195.3,4195.1,5.95757834]
[1758713344387,0.001,4195.3,4195.2,14.85453676]
[1758713344697,0.001,4195.3,4195.2,14.8307]
[1758713347620,0.001,4195.3,4195.2,14.5]
[1758713347920,0.001,4195.3,4195.2,14.8307]
[1758713348077,0.001,4195.3,4195.2,14.5]
[1758713349716,0.471,4195.3,4195.2,14.5]
[1758713350221,0.001,4195.3,4195.2,14.5]
[1758713351314,0.471,4195.3,4195.2,14.5]
[1758713351482,1.03754738,4195.3,4195.2,14.5]
[1758713351682,0.56754738,4195.3,4195.2,14.5]
[1758713351914,1.04214738,4195.3,4195.2,14.5]
[1758713355428,1.04134738,4195.3,4195.2,14.5]
[1758713355636,0.56674738,4195.3,4195.2,14.5]
[1758713355811,0.56674738,4195.3,4194.5,0.3347]
[1758713356348,0.79954738,4195.3,4194.9,14.5]
[1758713356556,0.69416212,4195.3,4194.9,14.5]
[1758713356727,0.2328,4195.2,4194.9,14.5]
[1758713357111,0.56674738,4195.3,4194.9,14.5]
[1758713357352,0.79954738,4195.3,4194.9,14.5]
[1758713357511,1.27414738,4195.3,4194.9,14.5]
[1758713358228,0.2328,4195.2,4194.9,14.5]
[1758713358624,0.7074,4195.2,4194.9,14.5]
[1758713359147,0.2328,4195.1,4194.9,14.5]
[1758713360246,0.56674738,4195.0,4194.9,14.5]
[1758713362153,1.27414738,4195.0,4194.9,14.5]
[1758713363442,0.56674738,4195.0,4194.9,14.5]
[1758713364137,0.79954738,4195.0,4194.9,14.5]
[1758713364454,1.27414738,4195.0,4194.9,14.5]
[1758713366020,0.56674738,4195.0,4194.9,14.5]
[1758713366672,1.27414738,4195.0,4194.9,14.5]
[1758713367027,0.56674738,4195.0,4194.9,14.5]
[1758713367736,0.56674738,4195.0,4194.9,14.6362]
[1758713368095,0.56674738,4195.0,4194.9,14.9669]
[1758713368570,0.0002,4195.3,4194.9,15.0853]
[1758713368769,0.0002,4195.3,4195.0,0.4907379]
[1758713368954,0.0002,4195.3,4195.2,0.1184]
[1758713369273,0.0002,4195.3,4195.2,14.6184]
[1758713369569,0.0002,4195.3,4195.2,15.0853]
[1758713370871,0.0002,4195.3,4195.2,14.6184]
[1758713372076,0.7076,4195.3,4195.2,14.6184]
[1758713373456,0.0002,4195.3,4195.2,14.6184]
[1758713373975,0.0002,4195.3,4195.2,14.5]
[1758713377262,0.7076,4195.3,4195.2,14.5]
[1758713378462,0.82978678,4195.3,4195.2,14.5]
[1758713382498,0.7076,4195.3,4195.2,14.5]
[1758713383016,0.7068,4195.3,4195.2,14.5]
[1758713383786,0.51426785,4195.4,4195.2,14.5]
[1758713383981,0.51426785,4195.6,4195.2,14.5]
[1758713384306,0.98116785,4195.5,4195.2,14.5]
[1758713384481,0.98116785,4195.4,4195.2,14.5]
[1758713384683,0.4669,4195.3,4195.2,14.5]
[1758713385116,0.701,4195.3,4195.2,14.5]
[1758713386322,0.82252679,4195.3,4195.2,14.5]
[1758713387203,0.701,4195.3,4195.2,14.5]
[1758713388724,1.21526785,4195.3,4195.2,14.5]
[1758713389097,1.85858984,4195.3,4195.2,14.5]
[1758713391733,1.15758984,4195.3,4195.2,14.5]
[1758713395226,1.85858984,4195.3,4195.2,14.5]
[1758713395425,2.50185145,4195.3,4195.2,14.5]
[1758713398108,1.85852946,4195.3,4195.2,14.5]
[1758713400645,2.65052946,4195.3,4195.2,14.5]
[1758713400818,6.50772787,4195.3,4195.2,14.5]
[1758713401018,6.50772787,4195.3,4195.1,0.004]
[1758713401019,3.792,4195.2,4195.1,0.004]
[1758713401254,2.37913716,4195.2,4195.1,0.004]
[1758713401449,2.01036785,4195.2,4195.1,0.004]
[1758713401718,12.85061451,4195.2,4195.1,0.004]
[1758713401914,0.792,4195.0,4194.7,0.004]
[1758713402143,0.792,4194.8,4194.7,0.004]
[1758713402354,2.16393787,4194.8,4194.7,0.004]
[1758713402518,5.72586541,4194.8,4194.7,0.004]
[1758713403231,6.44283892,4194.8,4194.7,0.004]
[1758713403548,7.30029292,4194.8,4194.7,0.004]
[1758713404129,6.59619292,4194.8,4194.7,0.004]
[1758713404328,4.23124136,4194.8,4194.7,0.004]
[1758713404535,4.15719919,4194.8,4194.7,0.004]
[1758713404722,3.64293134,4194.8,4194.7,0.004]
[1758713405250,1.27559919,4194.8,4194.7,0.4715]
[1758713405419,0.1184,4194.8,4194.7,0.4715]
[1758713405615,0.1184,4194.8,4194.7,0.004]
[1758713407523,0.1184,4194.8,4194.7,0.4715]
[1758713407721,0.1184,4194.8,4194.7,0.004]
[1758713408058,0.1184,4194.8,4194.7,0.4715]
[1758713408356,0.1184,4194.8,4194.7,14.9715]
[1758713408577,0.1184,4194.8,4194.7,14.504]
[1758713408863,0.1184,4194.8,4194.7,14.9715]
[1758713409438,0.1176,4194.8,4194.7,14.9715]
[1758713410757,1.15719919,4195.1,4194.7,14.9715]
[1758713410936,0.1184,4195.0,4194.8,0.4675]
[1758713411131,0.1184,4195.0,4194.9,0.4675]
[1758713412133,0.1184,4195.0,4194.7,0.004]
[1758713412333,0.1184,4195.0,4194.9,14.5]
[1758713415970,2.10175911,4195.0,4194.9,14.5]
[1758713416170,1.27559919,4195.0,4194.9,14.5]
[1758713416962,1.27559919,4195.2,4194.9,14.9675]
[1758713417274,0.51426785,4195.1,4195.0,0.1368]
[1758713417458,0.51426785,4195.1,4194.9,14.8307]
[1758713417662,0.51426785,4195.1,4194.9,14.5]
[1758713417861,0.51426785,4195.1,4194.9,14.6368]
[1758713418365,0.51426785,4195.0,4194.9,14.6368]
[1758713421203,0.51426785,4195.1,4194.9,14.6368]
[1758713423290,0.51426785,4195.1,4195.0,0.1368]
[1758713423505,0.001,4195.2,4195.0,6.11983781]
[1758713423695,0.001,4195.2,4195.1,0.4675]
[1758713423896,0.001,4195.2,4195.1,14.9675]
[1758713429789,0.001,4195.2,4195.1,15.0859]
[1758713436737,0.0002,4195.2,4195.1,15.0859]
[1758713438872,0.0002,4195.2,4195.1,14.7552]
[1758713439075,0.0002,4195.2,4195.1,15.0859]
[1758713443372,0.0002,4195.2,4195.1,17.6184]
[1758713443572,0.0002,4195.2,4195.1,18.0859]
[1758713444035,0.0002,4195.2,4195.1,17.7552]
[1758713444239,0.0002,4195.2,4195.1,17.6184]
[1758713444764,0.0002,4195.2,4195.1,18.0859]
[1758713445165,0.0002,4195.2,4195.1,17.7552]
[1758713445467,0.0002,4195.2,4195.1,17.6184]